[Event "*** Qualifier 2: Titled Tuesday 3|2 Blitz"]
[Site "Chess.com"]
[Date "2017.04.11"]
[Round "6"]
[White "Gabrielian_Artur"]
[Black "jcibarra"]
[Result "0-1"]
[WhiteElo "2608"]
[BlackElo "2655"]
[TimeControl "180+2"]
[EndTime "14:19:53 PDT"]
[Termination "jcibarra won by resignation"]

1. e4 {[%clk 0:03:02]} 1... c5 {[%clk 0:02:59.8]} 2. Nf3 {[%clk 0:03:03.1]} 2...
Nf6 {[%clk 0:03:01.4]} 3. e5 {[%clk 0:03:03.7]} 3... Nd5 {[%clk 0:03:02.4]} 4.
Nc3 {[%clk 0:03:05]} 4... e6 {[%clk 0:03:03.4]} 5. Nxd5 {[%clk 0:03:05.2]} 5...
exd5 {[%clk 0:03:05.3]} 6. d4 {[%clk 0:03:06.3]} 6... Nc6 {[%clk 0:03:06.7]} 7.
c3 {[%clk 0:03:06.3]} 7... cxd4 {[%clk 0:03:05.1]} 8. Nxd4 {[%clk 0:03:06.3]}
8... d6 {[%clk 0:03:07]} 9. Bb5 {[%clk 0:02:54.7]} 9... Bd7 {[%clk 0:03:06.9]}
10. Nf3 {[%clk 0:02:52.7]} 10... dxe5 {[%clk 0:03:04.1]} 11. Bxc6 {[%clk
0:02:50.9]} 11... bxc6 {[%clk 0:03:00.1]} 12. Nxe5 {[%clk 0:02:51.6]} 12... Qe7
{[%clk 0:02:59.1]} 13. Qe2 {[%clk 0:02:51.9]} 13... f6 {[%clk 0:02:52]} 14. Nxd7
{[%clk 0:02:51.8]} 14... Qxe2+ {[%clk 0:02:53.6]} 15. Kxe2 {[%clk 0:02:52.6]}
15... Kxd7 {[%clk 0:02:55.5]} 16. Be3 {[%clk 0:02:53.5]} 16... Bd6 {[%clk
0:02:54.1]} 17. Rhd1 {[%clk 0:02:51.4]} 17... a5 {[%clk 0:02:53.8]} 18. c4
{[%clk 0:02:50.1]} 18... Rhb8 {[%clk 0:02:51.4]} 19. b3 {[%clk 0:02:49.6]} 19...
Ke6 {[%clk 0:02:49.1]} 20. cxd5+ {[%clk 0:02:50]} 20... cxd5 {[%clk 0:02:51]}
21. Rd3 {[%clk 0:02:46.5]} 21... a4 {[%clk 0:02:51.3]} 22. Rad1 {[%clk
0:02:46.9]} 22... axb3 {[%clk 0:02:52.8]} 23. axb3 {[%clk 0:02:47.7]} 23... Ra2+
{[%clk 0:02:53.2]} 24. Kf3 {[%clk 0:02:48.9]} 24... Rb5 {[%clk 0:02:53.6]} 25.
Bd4 {[%clk 0:02:47]} 25... Be5 {[%clk 0:02:53]} 26. Re1 {[%clk 0:02:32.6]} 26...
Ra3 {[%clk 0:02:51.1]} 27. Ree3 {[%clk 0:02:29.4]} 27... Kd6 {[%clk 0:02:49.9]}
28. Bxe5+ {[%clk 0:01:37.1]} 28... fxe5 {[%clk 0:02:51.8]} 29. Kg4 {[%clk
0:01:38.2]} 29... Rb4+ {[%clk 0:02:45.2]} 30. Kg5 {[%clk 0:01:36]} 30... Ra2
{[%clk 0:02:46.4]} 31. Rg3 {[%clk 0:01:12.9]} 31... Rxf2 {[%clk 0:02:45.3]} 32.
Kh5 {[%clk 0:01:14]} 32... Rf5+ {[%clk 0:02:45]} 33. Rg5 {[%clk 0:01:13.5]}
33... g6+ {[%clk 0:02:46]} 34. Kh6 {[%clk 0:01:14]} 34... Rh4+ {[%clk
0:02:47.6]} 35. Kg7 {[%clk 0:01:15]} 35... Rxg5 {[%clk 0:02:49.1]} 0-1

[Event "*** Qualifier 2: Titled Tuesday 3|2 Blitz"]
[Site "Chess.com"]
[Date "2017.04.11"]
[Round "6"]
[White "chesstatour"]
[Black "Maitreia"]
[Result "0-1"]
[WhiteElo "1948"]
[BlackElo "2496"]
[TimeControl "180+2"]
[EndTime "14:20:09 PDT"]
[Termination "Maitreia won by resignation"]

1. c4 {[%clk 0:03:02]} 1... Nf6 {[%clk 0:03:00.4]} 2. Nc3 {[%clk 0:03:01.4]}
2... g6 {[%clk 0:03:01.2]} 3. d4 {[%clk 0:03:00.2]} 3... Bg7 {[%clk 0:03:02.3]}
4. e4 {[%clk 0:03:01.4]} 4... O-O {[%clk 0:03:03.7]} 5. f4 {[%clk 0:03:02.5]}
5... d6 {[%clk 0:03:04.7]} 6. Nf3 {[%clk 0:03:03.4]} 6... c5 {[%clk 0:03:05.7]}
7. d5 {[%clk 0:03:04.9]} 7... Bg4 {[%clk 0:03:05.3]} 8. Bd3 {[%clk 0:03:00.6]}
8... e6 {[%clk 0:03:05.3]} 9. dxe6 {[%clk 0:02:59.8]} 9... fxe6 {[%clk
0:03:04.1]} 10. O-O {[%clk 0:03:00.8]} 10... Nc6 {[%clk 0:03:04.8]} 11. Qe1
{[%clk 0:03:00.6]} 11... Bxf3 {[%clk 0:03:03.2]} 12. Rxf3 {[%clk 0:02:57.4]}
12... Nd4 {[%clk 0:03:03.6]} 13. Rh3 {[%clk 0:02:55.2]} 13... e5 {[%clk
0:02:56]} 14. fxe5 {[%clk 0:02:48.5]} 14... dxe5 {[%clk 0:02:57.9]} 15. Bg5
{[%clk 0:02:48.7]} 15... Ne6 {[%clk 0:02:43.6]} 16. Bxf6 {[%clk 0:02:23.6]}
16... Qd4+ {[%clk 0:02:44.3]} 17. Kh1 {[%clk 0:02:23.7]} 17... Rxf6 {[%clk
0:02:40.6]} 18. Rd1 {[%clk 0:00:52.5]} 18... Raf8 {[%clk 0:02:40.8]} 19. Nd5
{[%clk 0:00:25.6]} 19... R6f7 {[%clk 0:02:41.4]} 20. b3 {[%clk 0:00:14.1]} 20...
Nf4 {[%clk 0:02:35.5]} 21. Nxf4 {[%clk 0:00:13.9]} 21... Rxf4 {[%clk 0:02:34]}
22. Bb1 {[%clk 0:00:12.3]} 22... Qxd1 {[%clk 0:02:31.5]} 0-1

[Event "*** Qualifier 2: Titled Tuesday 3|2 Blitz"]
[Site "Chess.com"]
[Date "2017.04.11"]
[Round "6"]
[White "Rodalquilar"]
[Black "FancyPlaySyndrome"]
[Result "1-0"]
[WhiteElo "2525"]
[BlackElo "2386"]
[TimeControl "180+2"]
[EndTime "14:20:41 PDT"]
[Termination "Rodalquilar won by resignation"]

1. d4 {[%clk 0:02:54.9]} 1... g6 {[%clk 0:03:00.7]} 2. e4 {[%clk 0:02:55.4]}
2... Bg7 {[%clk 0:03:00.2]} 3. Nc3 {[%clk 0:02:56.8]} 3... d6 {[%clk 0:03:00.6]}
4. g3 {[%clk 0:02:57.7]} 4... Nd7 {[%clk 0:03:00.9]} 5. Bg2 {[%clk 0:02:58.4]}
5... e5 {[%clk 0:03:01.9]} 6. Nge2 {[%clk 0:02:59.7]} 6... Ngf6 {[%clk
0:03:02.6]} 7. h3 {[%clk 0:03:00.9]} 7... O-O {[%clk 0:03:03.5]} 8. O-O {[%clk
0:03:02.1]} 8... a6 {[%clk 0:03:04.4]} 9. a4 {[%clk 0:03:02.9]} 9... Rb8 {[%clk
0:03:04.9]} 10. Be3 {[%clk 0:03:03.8]} 10... b5 {[%clk 0:03:05.9]} 11. axb5
{[%clk 0:03:04.9]} 11... axb5 {[%clk 0:03:07.8]} 12. dxe5 {[%clk 0:02:54.9]}
12... dxe5 {[%clk 0:03:04.9]} 13. Ra7 {[%clk 0:02:37]} 13... b4 {[%clk
0:02:58.5]} 14. Nd5 {[%clk 0:02:38.3]} 14... c6 {[%clk 0:03:00]} 15. Nxf6+
{[%clk 0:02:32.3]} 15... Nxf6 {[%clk 0:03:01.9]} 16. Bc5 {[%clk 0:02:20.9]}
16... Re8 {[%clk 0:02:59.4]} 17. Bd6 {[%clk 0:02:00.7]} 17... Rb7 {[%clk
0:02:56.7]} 18. Rxb7 {[%clk 0:02:01.2]} 18... Bxb7 {[%clk 0:02:58.1]} 19. Bxb4
{[%clk 0:02:02.6]} 19... Qb6 {[%clk 0:02:53]} 20. Ba3 {[%clk 0:01:45.2]} 20...
Ba6 {[%clk 0:02:46.2]} 21. Re1 {[%clk 0:01:43.6]} 21... Rd8 {[%clk 0:02:42.2]}
22. Qc1 {[%clk 0:01:42.1]} 22... h6 {[%clk 0:02:31.9]} 23. Nc3 {[%clk
0:01:41.5]} 23... Rd4 {[%clk 0:02:31]} 24. b3 {[%clk 0:01:34]} 24... Kh7 {[%clk
0:02:19.3]} 25. Na4 {[%clk 0:01:34.6]} 25... Qd8 {[%clk 0:02:17.6]} 26. Bb2
{[%clk 0:01:33.9]} 26... Rd2 {[%clk 0:01:37.9]} 27. Bc3 {[%clk 0:01:34.6]} 27...
Rd6 {[%clk 0:01:29.3]} 28. Nc5 {[%clk 0:01:29.1]} 28... Bc8 {[%clk 0:01:28.5]}
29. Bxe5 {[%clk 0:01:28.9]} 1-0

[Event "*** Qualifier 2: Titled Tuesday 3|2 Blitz"]
[Site "Chess.com"]
[Date "2017.04.11"]
[Round "6"]
[White "rpragchess"]
[Black "luisgui16"]
[Result "0-1"]
[WhiteElo "2213"]
[BlackElo "2136"]
[TimeControl "180+2"]
[EndTime "14:21:28 PDT"]
[Termination "luisgui16 won by resignation"]

1. e4 {[%clk 0:03:02]} 1... g6 {[%clk 0:02:59.6]} 2. d4 {[%clk 0:03:01.7]} 2...
Bg7 {[%clk 0:02:59.7]} 3. Nc3 {[%clk 0:03:03.2]} 3... d6 {[%clk 0:03:00.7]} 4.
Be3 {[%clk 0:03:04.4]} 4... a6 {[%clk 0:02:59.9]} 5. Qd2 {[%clk 0:03:05.4]} 5...
b5 {[%clk 0:03:00.8]} 6. h4 {[%clk 0:03:04.5]} 6... Bb7 {[%clk 0:03:01.2]} 7. h5
{[%clk 0:03:03.3]} 7... b4 {[%clk 0:02:59.6]} 8. Nd5 {[%clk 0:03:02.6]} 8... a5
{[%clk 0:02:58]} 9. f3 {[%clk 0:02:59.9]} 9... Bxd5 {[%clk 0:02:56.3]} 10. e5
{[%clk 0:03:00.4]} 10... Bb7 {[%clk 0:02:49.2]} 11. O-O-O {[%clk 0:02:54]} 11...
dxe5 {[%clk 0:02:49.4]} 12. h6 {[%clk 0:02:50.4]} 12... Bf6 {[%clk 0:02:47.4]}
13. Qf2 {[%clk 0:02:46.3]} 13... exd4 {[%clk 0:02:36.9]} 14. Bxd4 {[%clk
0:02:41.6]} 14... Qc8 {[%clk 0:02:36.9]} 15. Bc4 {[%clk 0:02:30]} 15... Nc6
{[%clk 0:02:35.6]} 16. Bxf6 {[%clk 0:02:29.1]} 16... Nxf6 {[%clk 0:02:35.2]} 17.
g4 {[%clk 0:02:30]} 17... O-O {[%clk 0:02:32.7]} 18. Qc5 {[%clk 0:02:28.9]}
18... Qb8 {[%clk 0:02:16.7]} 19. g5 {[%clk 0:02:25.3]} 19... Ne8 {[%clk
0:02:16.1]} 20. Bb5 {[%clk 0:02:09.4]} 20... Qa7 {[%clk 0:02:14]} 21. Qc4 {[%clk
0:02:09.4]} 21... Qb6 {[%clk 0:02:00.9]} 22. Bxc6 {[%clk 0:02:05.9]} 22... Qxc6
{[%clk 0:01:57.7]} 23. Qd4 {[%clk 0:02:06.5]} 23... Qd6 {[%clk 0:01:55.6]} 24.
Qe3 {[%clk 0:02:05.4]} 24... Qe6 {[%clk 0:01:55.8]} 25. Qf4 {[%clk 0:02:04.6]}
25... Qxa2 {[%clk 0:01:54.7]} 26. Rd3 {[%clk 0:01:56.1]} 26... Ba6 {[%clk
0:01:39.3]} 27. Rd7 {[%clk 0:01:41.2]} 27... Qe6 {[%clk 0:01:30.3]} 28. Qd2
{[%clk 0:01:38]} 28... Bb5 {[%clk 0:01:24.5]} 29. Rd5 {[%clk 0:01:35]} 29... c6
{[%clk 0:01:25.6]} 30. Rd4 {[%clk 0:01:34.8]} 30... b3 {[%clk 0:01:25.1]} 31. c3
{[%clk 0:01:30.3]} 31... a4 {[%clk 0:01:26.1]} 32. Nh3 {[%clk 0:01:28.6]} 32...
a3 {[%clk 0:01:27.3]} 33. bxa3 {[%clk 0:01:26]} 33... Rxa3 {[%clk 0:01:24.1]}
34. Kb1 {[%clk 0:01:27.1]} 34... c5 {[%clk 0:01:18.4]} 0-1

[Event "*** Qualifier 2: Titled Tuesday 3|2 Blitz"]
[Site "Chess.com"]
[Date "2017.04.11"]
[Round "6"]
[White "Alexander_Moskalenko"]
[Black "donotreadit"]
[Result "1-0"]
[WhiteElo "2651"]
[BlackElo "2521"]
[TimeControl "180+2"]
[EndTime "14:21:31 PDT"]
[Termination "Alexander_Moskalenko won by resignation"]

1. d4 {[%clk 0:03:00.5]} 1... d6 {[%clk 0:03:00.4]} 2. c4 {[%clk 0:03:02.4]}
2... e5 {[%clk 0:03:00.9]} 3. Nf3 {[%clk 0:03:03]} 3... e4 {[%clk 0:03:01.6]} 4.
Ng5 {[%clk 0:03:01.4]} 4... Nf6 {[%clk 0:03:02.5]} 5. Nc3 {[%clk 0:02:55.5]}
5... Bf5 {[%clk 0:03:03.7]} 6. f3 {[%clk 0:02:39.2]} 6... exf3 {[%clk
0:03:00.4]} 7. gxf3 {[%clk 0:02:39.7]} 7... Nc6 {[%clk 0:02:59.8]} 8. e4 {[%clk
0:02:39.7]} 8... Bd7 {[%clk 0:03:00.5]} 9. h4 {[%clk 0:02:40.5]} 9... Be7 {[%clk
0:02:58.8]} 10. f4 {[%clk 0:02:38.2]} 10... Bg4 {[%clk 0:02:44.1]} 11. Be2
{[%clk 0:02:35.5]} 11... Bxe2 {[%clk 0:02:36.4]} 12. Kxe2 {[%clk 0:02:37.4]}
12... Qd7 {[%clk 0:02:29.1]} 13. Be3 {[%clk 0:02:32.6]} 13... Nh5 {[%clk
0:02:19]} 14. Kd2 {[%clk 0:02:29.1]} 14... g6 {[%clk 0:02:17]} 15. a3 {[%clk
0:02:28.7]} 15... Na5 {[%clk 0:02:14.9]} 16. b3 {[%clk 0:02:21.9]} 16... c5
{[%clk 0:02:14.9]} 17. dxc5 {[%clk 0:02:19.4]} 17... dxc5+ {[%clk 0:02:07.8]}
18. Kc2 {[%clk 0:02:20.8]} 18... Qxd1+ {[%clk 0:01:58.9]} 19. Raxd1 {[%clk
0:02:22.7]} 19... b6 {[%clk 0:01:54.9]} 20. Nd5 {[%clk 0:02:23]} 20... Rc8
{[%clk 0:01:48]} 21. Rhg1 {[%clk 0:02:17.1]} 21... Nc6 {[%clk 0:01:39.2]} 22.
Nf3 {[%clk 0:02:16.2]} 22... Nf6 {[%clk 0:01:36.2]} 23. e5 {[%clk 0:02:12.8]}
23... Nh5 {[%clk 0:01:34.4]} 24. f5 {[%clk 0:02:13.8]} 24... gxf5 {[%clk
0:01:30.2]} 25. Bh6 {[%clk 0:02:15.4]} 25... Nd8 {[%clk 0:01:24]} 26. Ng5 {[%clk
0:02:14]} 26... Ne6 {[%clk 0:01:13.3]} 27. Nxe6 {[%clk 0:02:11.6]} 27... fxe6
{[%clk 0:01:14.2]} 28. Nxe7 {[%clk 0:02:13.3]} 28... Kxe7 {[%clk 0:01:15]} 29.
Rg5 {[%clk 0:02:11.6]} 29... Kf7 {[%clk 0:00:54.4]} 30. Rd7+ {[%clk 0:02:04]}
30... Ke8 {[%clk 0:00:55.7]} 31. Rxa7 {[%clk 0:02:04.7]} 31... Nf4 {[%clk
0:00:57.2]} 32. Rgg7 {[%clk 0:01:53.3]} 32... Ng6 {[%clk 0:00:58.1]} 33. h5
{[%clk 0:01:54.9]} 33... Nxe5 {[%clk 0:00:59.4]} 34. Rge7+ {[%clk 0:01:51.8]}
34... Kd8 {[%clk 0:00:57]} 35. Bg5 {[%clk 0:01:51.7]} 35... h6 {[%clk
0:00:42.6]} 36. Rh7+ {[%clk 0:01:50.6]} 1-0

[Event "*** Qualifier 2: Titled Tuesday 3|2 Blitz"]
[Site "Chess.com"]
[Date "2017.04.11"]
[Round "6"]
[White "Sanan_Sjugirov"]
[Black "EvgenyT"]
[Result "0-1"]
[WhiteElo "2680"]
[BlackElo "2568"]
[TimeControl "180+2"]
[EndTime "14:21:33 PDT"]
[Termination "EvgenyT won by resignation"]

1. d4 {[%clk 0:03:02]} 1... Nf6 {[%clk 0:02:58.4]} 2. Nf3 {[%clk 0:03:03.1]}
2... e6 {[%clk 0:03:00]} 3. Bg5 {[%clk 0:03:04]} 3... h6 {[%clk 0:02:57.5]} 4.
Bh4 {[%clk 0:03:05]} 4... d6 {[%clk 0:02:58.6]} 5. Nbd2 {[%clk 0:02:59.2]} 5...
g5 {[%clk 0:02:54.8]} 6. Bg3 {[%clk 0:03:00.3]} 6... Nh5 {[%clk 0:02:56.3]} 7.
e3 {[%clk 0:03:00.4]} 7... Bg7 {[%clk 0:02:53.4]} 8. c3 {[%clk 0:02:59.8]} 8...
Nd7 {[%clk 0:02:52]} 9. Bd3 {[%clk 0:02:59.9]} 9... Ndf6 {[%clk 0:02:38]} 10.
Qb3 {[%clk 0:02:29.4]} 10... Qe7 {[%clk 0:02:27.9]} 11. O-O-O {[%clk 0:02:09.2]}
11... a6 {[%clk 0:02:26.3]} 12. Qc2 {[%clk 0:01:59.5]} 12... b5 {[%clk
0:02:18.5]} 13. e4 {[%clk 0:02:00]} 13... Nxg3 {[%clk 0:02:18.3]} 14. hxg3
{[%clk 0:02:00.9]} 14... Ng4 {[%clk 0:02:19.3]} 15. Nb3 {[%clk 0:01:59.7]} 15...
c5 {[%clk 0:02:15.2]} 16. dxc5 {[%clk 0:01:36.2]} 16... dxc5 {[%clk 0:02:14.4]}
17. c4 {[%clk 0:01:36.1]} 17... O-O {[%clk 0:02:06.5]} 18. e5 {[%clk 0:01:32]}
18... Bb7 {[%clk 0:01:55.4]} 19. Rde1 {[%clk 0:00:48]} 19... Bxf3 {[%clk
0:01:53]} 20. gxf3 {[%clk 0:00:48.3]} 20... Nxe5 {[%clk 0:01:53.9]} 21. Bh7+
{[%clk 0:00:28]} 21... Kh8 {[%clk 0:01:54.3]} 22. Nd2 {[%clk 0:00:22.9]} 22...
f5 {[%clk 0:01:50.2]} 23. f4 {[%clk 0:00:15.9]} 23... gxf4 {[%clk 0:01:48.2]}
24. gxf4 {[%clk 0:00:17.2]} 24... Nc6 {[%clk 0:01:46.5]} 25. Bg6 {[%clk
0:00:15.5]} 25... Qf6 {[%clk 0:01:43.6]} 26. Reg1 {[%clk 0:00:16.2]} 26... Rad8
{[%clk 0:01:29.3]} 27. Nf3 {[%clk 0:00:16.8]} 27... Nb4 {[%clk 0:01:28.8]} 0-1

[Event "*** Qualifier 2: Titled Tuesday 3|2 Blitz"]
[Site "Chess.com"]
[Date "2017.04.11"]
[Round "6"]
[White "RitvarsReimanis"]
[Black "amaidel"]
[Result "1-0"]
[WhiteElo "2425"]
[BlackElo "2449"]
[TimeControl "180+2"]
[EndTime "14:21:52 PDT"]
[Termination "RitvarsReimanis won by resignation"]

1. d4 {[%clk 0:03:01.1]} 1... d5 {[%clk 0:03:00.4]} 2. c4 {[%clk 0:03:00.2]}
2... c6 {[%clk 0:03:01.7]} 3. Nf3 {[%clk 0:03:01]} 3... Nf6 {[%clk 0:03:02.9]}
4. e3 {[%clk 0:03:02.5]} 4... Bg4 {[%clk 0:03:02.7]} 5. Qb3 {[%clk 0:03:02.3]}
5... Qb6 {[%clk 0:03:02.1]} 6. Ne5 {[%clk 0:03:02.6]} 6... Be6 {[%clk
0:03:01.5]} 7. Nc3 {[%clk 0:02:58.7]} 7... dxc4 {[%clk 0:03:00.1]} 8. Bxc4
{[%clk 0:02:55.8]} 8... Bxc4 {[%clk 0:02:59.9]} 9. Nxc4 {[%clk 0:02:19.6]} 9...
Qc7 {[%clk 0:02:59.1]} 10. Bd2 {[%clk 0:02:09.5]} 10... Nbd7 {[%clk 0:02:59.8]}
11. h3 {[%clk 0:02:05.1]} 11... e6 {[%clk 0:02:56.9]} 12. O-O {[%clk 0:02:03.7]}
12... Be7 {[%clk 0:02:57.5]} 13. Rfe1 {[%clk 0:02:00.9]} 13... O-O {[%clk
0:02:58]} 14. e4 {[%clk 0:01:58.7]} 14... b5 {[%clk 0:02:48.8]} 15. Ne3 {[%clk
0:01:54.3]} 15... a5 {[%clk 0:02:42]} 16. e5 {[%clk 0:01:53.2]} 16... Nd5 {[%clk
0:02:39.8]} 17. Ncxd5 {[%clk 0:01:42.6]} 17... exd5 {[%clk 0:02:41.7]} 18. Rac1
{[%clk 0:01:38.1]} 18... Qb7 {[%clk 0:02:37.1]} 19. Nf5 {[%clk 0:01:35.3]} 19...
Rfe8 {[%clk 0:02:38]} 20. Qg3 {[%clk 0:01:29.8]} 20... g6 {[%clk 0:02:33.5]} 21.
e6 {[%clk 0:00:59.7]} 21... fxe6 {[%clk 0:02:08.8]} 22. Rxe6 {[%clk 0:01:01.6]}
22... Nf8 {[%clk 0:00:49.1]} 23. Rexc6 {[%clk 0:00:42.7]} 23... Qd7 {[%clk
0:00:43.7]} 24. Nh6+ {[%clk 0:00:38.6]} 24... Kg7 {[%clk 0:00:42.9]} 25. Qe5+
{[%clk 0:00:38.3]} 1-0

[Event "*** Qualifier 2: Titled Tuesday 3|2 Blitz"]
[Site "Chess.com"]
[Date "2017.04.11"]
[Round "6"]
[White "chessking2151"]
[Black "aa175"]
[Result "1-0"]
[WhiteElo "2337"]
[BlackElo "1866"]
[TimeControl "180+2"]
[EndTime "14:21:54 PDT"]
[Termination "chessking2151 won by checkmate"]

1. e4 {[%clk 0:03:02]} 1... e5 {[%clk 0:03:00.8]} 2. Nf3 {[%clk 0:03:02.1]} 2...
Nc6 {[%clk 0:03:01.8]} 3. Bb5 {[%clk 0:03:02]} 3... Nf6 {[%clk 0:03:02]} 4. O-O
{[%clk 0:03:00.2]} 4... a6 {[%clk 0:03:00.1]} 5. Bxc6 {[%clk 0:02:58.5]} 5...
dxc6 {[%clk 0:03:01.4]} 6. Nxe5 {[%clk 0:02:58.4]} 6... Bd6 {[%clk 0:02:57.4]}
7. Nf3 {[%clk 0:02:54.2]} 7... Bg4 {[%clk 0:02:31.6]} 8. h3 {[%clk 0:02:53.7]}
8... Bh5 {[%clk 0:02:32.6]} 9. e5 {[%clk 0:02:52.6]} 9... Bxf3 {[%clk
0:02:30.4]} 10. Qxf3 {[%clk 0:02:50.9]} 10... Bxe5 {[%clk 0:02:31.5]} 11. Re1
{[%clk 0:02:52]} 11... Qe7 {[%clk 0:02:24.6]} 12. d4 {[%clk 0:02:48.3]} 12...
Bh2+ {[%clk 0:02:25.3]} 13. Kf1 {[%clk 0:02:49]} 13... Qxe1+ {[%clk 0:02:27.2]}
14. Kxe1 {[%clk 0:02:49.8]} 14... O-O-O {[%clk 0:02:21.1]} 15. Be3 {[%clk
0:02:47.5]} 15... Bd6 {[%clk 0:02:17]} 16. Nc3 {[%clk 0:02:47.5]} 16... Rhe8
{[%clk 0:02:17.1]} 17. Kf1 {[%clk 0:02:47.9]} 17... Bb4 {[%clk 0:02:14.4]} 18.
g4 {[%clk 0:02:47.4]} 18... Kb8 {[%clk 0:02:14.6]} 19. a3 {[%clk 0:02:47.7]}
19... Bd6 {[%clk 0:02:14.2]} 20. Kg2 {[%clk 0:02:47.5]} 20... h6 {[%clk
0:02:12.7]} 21. h4 {[%clk 0:02:47.2]} 21... Be7 {[%clk 0:02:04.8]} 22. g5 {[%clk
0:02:48]} 22... Nd5 {[%clk 0:02:02.2]} 23. Nxd5 {[%clk 0:02:47.7]} 23... Rxd5
{[%clk 0:01:59.6]} 24. Qxf7 {[%clk 0:02:48]} 24... Rdd8 {[%clk 0:01:58.9]} 25.
g6 {[%clk 0:02:46.6]} 25... Bf6 {[%clk 0:01:54.6]} 26. Rd1 {[%clk 0:02:46.9]}
26... Re4 {[%clk 0:01:45.5]} 27. h5 {[%clk 0:02:44.9]} 27... Rd5 {[%clk
0:01:40.1]} 28. Bxh6 {[%clk 0:02:27.9]} 28... Rxh5 {[%clk 0:01:29.3]} 29. Bxg7
{[%clk 0:02:21.7]} 29... Bg5 {[%clk 0:01:02.1]} 30. Be5 {[%clk 0:02:17.6]} 30...
Rg4+ {[%clk 0:00:58]} 31. Kf3 {[%clk 0:02:16.7]} 31... Rgh4 {[%clk 0:00:58.5]}
32. g7 {[%clk 0:02:15.5]} 32... Rh3+ {[%clk 0:00:57.9]} 33. Ke2 {[%clk
0:02:15.9]} 33... R5h4 {[%clk 0:00:37.3]} 34. g8=Q+ {[%clk 0:02:14.5]} 34... Ka7
{[%clk 0:00:37.5]} 35. Qxc7 {[%clk 0:01:54.6]} 35... Re4+ {[%clk 0:00:30.6]} 36.
Kf1 {[%clk 0:01:54.5]} 36... Rh1+ {[%clk 0:00:08.7]} 37. Kg2 {[%clk 0:01:54.4]}
37... Rxd1 {[%clk 0:00:07.1]} 38. Qgb8# {[%clk 0:01:53.7]} 1-0

[Event "*** Qualifier 2: Titled Tuesday 3|2 Blitz"]
[Site "Chess.com"]
[Date "2017.04.11"]
[Round "6"]
[White "aRk_iN"]
[Black "Generalas"]
[Result "0-1"]
[WhiteElo "2139"]
[BlackElo "2223"]
[TimeControl "180+2"]
[EndTime "14:22:24 PDT"]
[Termination "Generalas won by resignation"]

1. e4 {[%clk 0:03:02]} 1... e5 {[%clk 0:03:00]} 2. Nf3 {[%clk 0:03:03.1]} 2...
Nc6 {[%clk 0:03:00.2]} 3. Bb5 {[%clk 0:03:04.1]} 3... a6 {[%clk 0:03:00.8]} 4.
Bxc6 {[%clk 0:03:05.4]} 4... dxc6 {[%clk 0:03:01.2]} 5. O-O {[%clk 0:03:06.3]}
5... Qf6 {[%clk 0:02:56.4]} 6. d4 {[%clk 0:02:52.7]} 6... exd4 {[%clk
0:02:54.9]} 7. Nxd4 {[%clk 0:02:50.1]} 7... Bd7 {[%clk 0:02:47.8]} 8. c3 {[%clk
0:02:22.6]} 8... O-O-O {[%clk 0:02:46.8]} 9. Qe2 {[%clk 0:02:09.9]} 9... Bc5
{[%clk 0:02:01.3]} 10. Be3 {[%clk 0:02:09.3]} 10... Ne7 {[%clk 0:01:58]} 11. Nd2
{[%clk 0:02:09.6]} 11... Ng6 {[%clk 0:01:57.2]} 12. N2b3 {[%clk 0:01:50.4]}
12... Bb6 {[%clk 0:01:54.7]} 13. a4 {[%clk 0:01:46.8]} 13... Rhe8 {[%clk
0:01:41.2]} 14. f3 {[%clk 0:01:25.1]} 14... Nf4 {[%clk 0:01:39.7]} 15. Qd2
{[%clk 0:01:10.5]} 15... g5 {[%clk 0:01:33.2]} 16. a5 {[%clk 0:01:11.1]} 16...
Ba7 {[%clk 0:01:32.1]} 17. Qf2 {[%clk 0:00:21.1]} 17... c5 {[%clk 0:01:14.6]}
18. Nc2 {[%clk 0:00:13.1]} 18... Bb5 {[%clk 0:01:13.3]} 19. Rfd1 {[%clk
0:00:12.5]} 19... Nd3 {[%clk 0:01:09.9]} 20. Qg3 {[%clk 0:00:11.7]} 20... h6
{[%clk 0:01:06.5]} 21. Rd2 {[%clk 0:00:07.9]} 21... Nxb2 {[%clk 0:01:02.2]} 22.
Rxd8+ {[%clk 0:00:08.9]} 22... Rxd8 {[%clk 0:01:02.7]} 23. Rb1 {[%clk
0:00:09.6]} 23... Na4 {[%clk 0:01:01.5]} 24. Nd2 {[%clk 0:00:03.5]} 24... Nxc3
{[%clk 0:01:00.8]} 25. Re1 {[%clk 0:00:02.8]} 25... Ne2+ {[%clk 0:00:56.7]} 26.
Rxe2 {[%clk 0:00:04.3]} 26... Bxe2 {[%clk 0:00:58]} 27. h4 {[%clk 0:00:02.1]}
27... gxh4 {[%clk 0:00:55.8]} 28. Qh3+ {[%clk 0:00:03.5]} 28... Kb8 {[%clk
0:00:55.7]} 0-1